[Event "Titled Tuesday Blitz November 29 Early 2022"]
[White "Yeremyan, Alen"]
[Black "Ibarra Jerez, Jose Carlos"]
[WhiteFideId "13308998"]
[BlackFideId "2226332"]
[WhiteElo "2159"]
[BlackElo "2638"]
[Result "1-0"]
[Round "10"]
[TimeControl "180+1"]
[Date "2022.11.29"]
[WhiteClock "0:00:12"]
[BlackClock "0:00:06"]

1. c4 {[%clk 0:03:00]}  e5 {[%clk 0:02:59]} 2. g3 {[%clk 0:02:58]}  Nf6 {[%clk 0:02:59]} 3. Bg2 {[%clk 0:02:58]}  c6 {[%clk 0:03:00]} 4. Nf3 {[%clk 0:02:58]}  e4 {[%clk 0:03:00]} 5. Nd4 {[%clk 0:02:58]}  Qb6 {[%clk 0:03:00]} 6. Nc2 {[%clk 0:02:58]}  d5 {[%clk 0:03:00]} 7. cxd5 {[%clk 0:02:58]}  cxd5 {[%clk 0:03:01]} 8. O-O {[%clk 0:02:58]}  Nc6 {[%clk 0:03:01]} 9. d3 {[%clk 0:02:59]}  Be7 {[%clk 0:03:01]} 10. Nc3 {[%clk 0:02:59]}  O-O {[%clk 0:03:01]} 11. dxe4 {[%clk 0:03:00]}  dxe4 {[%clk 0:03:02]} 12. Nxe4 {[%clk 0:03:00]}  Nxe4 {[%clk 0:03:02]} 13. Bxe4 {[%clk 0:03:01]}  Rd8 {[%clk 0:03:03]} 14. Qe1 {[%clk 0:02:58]}  Bf6 {[%clk 0:02:57]} 15. Rb1 {[%clk 0:02:53]}  Re8 {[%clk 0:02:45]} 16. Be3 {[%clk 0:02:50]}  Qa6 {[%clk 0:02:42]} 17. Bd3 {[%clk 0:02:42]}  Qxa2 {[%clk 0:02:41]} 18. Nb4 {[%clk 0:02:43]}  Nxb4 {[%clk 0:02:27]} 19. Qxb4 {[%clk 0:02:44]}  Bh3 {[%clk 0:02:26]} 20. Bc4 {[%clk 0:02:37]}  a5 {[%clk 0:01:48]} 21. Qb5 {[%clk 0:02:19]}  Bd7 {[%clk 0:01:46]} 22. Qd5 {[%clk 0:02:19]}  Qa4 {[%clk 0:01:46]} 23. Qxf7+ {[%clk 0:02:17]}  Kh8 {[%clk 0:01:46]} 24. Bd3 {[%clk 0:02:09]}  Bb5 {[%clk 0:01:37]} 25. b3 {[%clk 0:01:57]}  Qb4 {[%clk 0:01:36]} 26. Bd2 {[%clk 0:01:42]}  Qc5 {[%clk 0:01:13]} 27. Rbc1 {[%clk 0:01:35]}  Qb6 {[%clk 0:01:13]} 28. Be3 {[%clk 0:01:20]}  Qa6 {[%clk 0:01:14]} 29. Rfd1 {[%clk 0:00:52]}  Bxd3 {[%clk 0:00:51]} 30. Rxd3 {[%clk 0:00:52]}  b5 {[%clk 0:00:50]} 31. Rc7 {[%clk 0:00:47]}  a4 {[%clk 0:00:43]} 32. bxa4 {[%clk 0:00:45]}  bxa4 {[%clk 0:00:43]} 33. Bc5 {[%clk 0:00:41]}  Qa5 {[%clk 0:00:29]} 34. Rf3 {[%clk 0:00:32]}  Qa6 {[%clk 0:00:24]} 35. Kg2 {[%clk 0:00:20]}  Qe6 {[%clk 0:00:20]} 36. Qxe6 {[%clk 0:00:15]}  Rxe6 {[%clk 0:00:21]} 37. Kf1 {[%clk 0:00:11]}  h6 {[%clk 0:00:12]} 38. Ra3 {[%clk 0:00:08]}  Bb2 {[%clk 0:00:12]} 39. Ra2 {[%clk 0:00:09]}  a3 {[%clk 0:00:11]} 40. Ra7 {[%clk 0:00:09]}  Rxa7 {[%clk 0:00:10]} 41. Bxa7 {[%clk 0:00:10]}  Rc6 {[%clk 0:00:10]} 42. Be3 {[%clk 0:00:10]}  Kg8 {[%clk 0:00:11]} 43. Ke1 {[%clk 0:00:10]}  Kf7 {[%clk 0:00:10]} 44. Kd1 {[%clk 0:00:10]}  Ke6 {[%clk 0:00:10]} 45. Bd2 {[%clk 0:00:09]}  Kd5 {[%clk 0:00:10]} 46. Bb4 {[%clk 0:00:10]}  Ra6 {[%clk 0:00:08]} 47. Kc2 {[%clk 0:00:10]}  Kc4 {[%clk 0:00:09]} 48. Bf8 {[%clk 0:00:10]}  h5 {[%clk 0:00:09]} 49. Rxb2 {[%clk 0:00:08]}  axb2 {[%clk 0:00:08]} 50. Bxg7 {[%clk 0:00:09]}  Re6 {[%clk 0:00:04]} 51. e3 {[%clk 0:00:09]}  Rb6 {[%clk 0:00:04]} 52. Bxb2 {[%clk 0:00:09]}  Rb5 {[%clk 0:00:04]} 53. Bd4 {[%clk 0:00:09]}  Ra5 {[%clk 0:00:05]} 54. f4 {[%clk 0:00:07]}  Ra2+ {[%clk 0:00:05]} 55. Bb2 {[%clk 0:00:07]}  Kd5 {[%clk 0:00:05]} 56. Kb3 {[%clk 0:00:08]}  Ra8 {[%clk 0:00:05]} 57. h3 {[%clk 0:00:08]}  Ke4 {[%clk 0:00:06]} 58. Bd4 {[%clk 0:00:07]}  Rg8 {[%clk 0:00:04]} 59. g4 {[%clk 0:00:07]}  Rxg4 {[%clk 0:00:02]} 60. hxg4 {[%clk 0:00:08]}  hxg4 {[%clk 0:00:02]} 61. f5 {[%clk 0:00:07]}  g3 {[%clk 0:00:02]} 62. f6 {[%clk 0:00:06]}  g2 {[%clk 0:00:02]} 63. f7 {[%clk 0:00:07]}  g1=Q {[%clk 0:00:03]} 64. f8=Q {[%clk 0:00:08]}  Qb1+ {[%clk 0:00:03]} 65. Ka4 {[%clk 0:00:07]}  Qa2+ {[%clk 0:00:03]} 66. Qa3 {[%clk 0:00:08]}  Qc4+ {[%clk 0:00:04]} 67. Qb4 {[%clk 0:00:08]}  Qa6+ {[%clk 0:00:05]} 68. Kb3 {[%clk 0:00:08]}  Qd3+ {[%clk 0:00:05]} 69. Kb2 {[%clk 0:00:09]}  Qe2+ {[%clk 0:00:05]} 70. Kc1 {[%clk 0:00:09]}  Qf1+ {[%clk 0:00:05]} 71. Kb2 {[%clk 0:00:08]}  Qe2+ {[%clk 0:00:05]} 72. Ka3 {[%clk 0:00:09]}  Qd3+ {[%clk 0:00:05]} 73. Qb3 {[%clk 0:00:09]}  Qa6+ {[%clk 0:00:05]} 74. Kb2 {[%clk 0:00:10]}  Qe2+ {[%clk 0:00:06]} 75. Qc2+ {[%clk 0:00:10]}  Qd3 {[%clk 0:00:04]} 76. Qxd3+ {[%clk 0:00:10]}  Kxd3 {[%clk 0:00:05]} 77. Kc1 {[%clk 0:00:11]}  Ke4 {[%clk 0:00:06]} 78. Kd2 {[%clk 0:00:11]}  Kd5 {[%clk 0:00:06]} 79. Kd3 {[%clk 0:00:12]} 1-0


[Site "https://www.chess.com"]

[Event "Titled Tuesday Blitz November 29 Early 2022"]
[White "sabkeIXO"]
[Black "Mohammed, Dilshad"]
[BlackFideId "5050421"]
[WhiteElo "2483"]
[BlackElo "2102"]
[Result "1-0"]
[Round "10"]
[TimeControl "180+1"]
[Date "2022.11.30"]
[WhiteClock "0:00:47"]
[BlackClock "0:00:01"]

1. e4 {[%clk 0:02:57]}  e5 {[%clk 0:02:59]} 2. Nf3 {[%clk 0:02:56]}  Nc6 {[%clk 0:02:59]} 3. d4 {[%clk 0:02:56]}  exd4 {[%clk 0:02:59]} 4. Bc4 {[%clk 0:02:56]}  Nf6 {[%clk 0:02:59]} 5. e5 {[%clk 0:02:55]}  d5 {[%clk 0:02:59]} 6. Bb5 {[%clk 0:02:56]}  Ne4 {[%clk 0:03:00]} 7. Nxd4 {[%clk 0:02:56]}  Bc5 {[%clk 0:03:01]} 8. Be3 {[%clk 0:02:56]}  O-O {[%clk 0:02:55]} 9. Nxc6 {[%clk 0:02:55]}  bxc6 {[%clk 0:02:50]} 10. Bxc5 {[%clk 0:02:55]}  Nxc5 {[%clk 0:02:51]} 11. Bxc6 {[%clk 0:02:55]}  Rb8 {[%clk 0:02:51]} 12. Qxd5 {[%clk 0:02:54]}  Qe7 {[%clk 0:02:51]} 13. O-O {[%clk 0:02:54]}  Rxb2 {[%clk 0:02:49]} 14. Nc3 {[%clk 0:02:47]}  Rxc2 {[%clk 0:02:48]} 15. Qf3 {[%clk 0:02:45]}  Qxe5 {[%clk 0:02:43]} 16. Nd5 {[%clk 0:02:34]}  Ne6 {[%clk 0:02:14]} 17. Rfe1 {[%clk 0:02:28]}  Qd6 {[%clk 0:02:13]} 18. Rad1 {[%clk 0:02:26]}  Kh8 {[%clk 0:02:01]} 19. Ba4 {[%clk 0:02:19]}  Rxa2 {[%clk 0:01:55]} 20. Nc3 {[%clk 0:02:16]}  Rd2 {[%clk 0:01:40]} 21. Rc1 {[%clk 0:01:59]}  Rd3 {[%clk 0:01:37]} 22. Ne4 {[%clk 0:01:48]}  Qd4 {[%clk 0:01:21]} 23. Qe2 {[%clk 0:01:41]}  Nf4 {[%clk 0:01:17]} 24. Qc2 {[%clk 0:01:38]}  Bb7 {[%clk 0:01:08]} 25. Bc6 {[%clk 0:01:31]}  Bxc6 {[%clk 0:01:03]} 26. Qxc6 {[%clk 0:01:31]}  f5 {[%clk 0:00:38]} 27. Ng5 {[%clk 0:01:26]}  Rd2 {[%clk 0:00:34]} 28. Qf3 {[%clk 0:01:10]}  h6 {[%clk 0:00:26]} 29. Ne6 {[%clk 0:01:05]}  Nxe6 {[%clk 0:00:26]} 30. Rxe6 {[%clk 0:01:06]}  Rd3 {[%clk 0:00:22]} 31. Qe2 {[%clk 0:01:02]}  Rd2 {[%clk 0:00:21]} 32. Qf3 {[%clk 0:00:56]}  Rd3 {[%clk 0:00:20]} 33. Re3 {[%clk 0:00:53]}  Rxe3 {[%clk 0:00:19]} 34. fxe3 {[%clk 0:00:54]}  Qd2 {[%clk 0:00:14]} 35. Rxc7 {[%clk 0:00:50]}  Re8 {[%clk 0:00:12]} 36. h3 {[%clk 0:00:46]}  Qxe3+ {[%clk 0:00:11]} 37. Qxe3 {[%clk 0:00:46]}  Rxe3 {[%clk 0:00:11]} 38. Rxa7 {[%clk 0:00:47]}  Kh7 {[%clk 0:00:07]} 39. Kf2 {[%clk 0:00:47]}  Rb3 {[%clk 0:00:06]} 40. Ra6 {[%clk 0:00:47]}  Rb5 {[%clk 0:00:04]} 41. Rc6 {[%clk 0:00:47]}  Ra5 {[%clk 0:00:02]} 42. Kf3 {[%clk 0:00:47]}  Rb5 {[%clk 0:00:02]} 43. Kf4 {[%clk 0:00:47]}  g6 {[%clk 0:00:02]} 44. Rc7+ {[%clk 0:00:47]}  Kg8 {[%clk 0:00:01]} 45. g3 {[%clk 0:00:47]} 1-0


[Site "https://www.chess.com"]

[Event "Titled Tuesday Blitz November 29 Early 2022"]
[White "Abasov, Nijat"]
[Black "Yeremyan, Alen"]
[WhiteFideId "13402960"]
[BlackFideId "13308998"]
[WhiteElo "2546"]
[BlackElo "2159"]
[Result "1-0"]
[Round "11"]
[TimeControl "180+1"]
[Date "2022.11.29"]
[WhiteClock "0:00:42"]
[BlackClock "0:00:25"]

1. Nf3 {[%clk 0:03:00]}  Nf6 {[%clk 0:02:57]} 2. d4 {[%clk 0:03:01]}  g6 {[%clk 0:02:58]} 3. g3 {[%clk 0:03:00]}  Bg7 {[%clk 0:02:58]} 4. Bg2 {[%clk 0:03:01]}  O-O {[%clk 0:02:59]} 5. O-O {[%clk 0:03:02]}  d5 {[%clk 0:03:00]} 6. c4 {[%clk 0:03:01]}  dxc4 {[%clk 0:03:00]} 7. Na3 {[%clk 0:03:01]}  a5 {[%clk 0:03:01]} 8. Nxc4 {[%clk 0:02:59]}  a4 {[%clk 0:03:01]} 9. Bf4 {[%clk 0:02:52]}  c6 {[%clk 0:02:52]} 10. Rc1 {[%clk 0:02:48]}  Be6 {[%clk 0:02:49]} 11. a3 {[%clk 0:02:38]}  Bd5 {[%clk 0:02:45]} 12. Qd2 {[%clk 0:02:34]}  Nbd7 {[%clk 0:02:44]} 13. Rfd1 {[%clk 0:02:32]}  Re8 {[%clk 0:02:44]} 14. Bh6 {[%clk 0:02:32]}  Bh8 {[%clk 0:02:44]} 15. Qf4 {[%clk 0:02:31]}  Qb8 {[%clk 0:02:24]} 16. Qh4 {[%clk 0:02:19]}  b5 {[%clk 0:02:15]} 17. Nce5 {[%clk 0:02:17]}  Qb7 {[%clk 0:02:01]} 18. Nxd7 {[%clk 0:02:05]}  Nxd7 {[%clk 0:01:47]} 19. e4 {[%clk 0:02:01]}  Bb3 {[%clk 0:01:48]} 20. Rd2 {[%clk 0:02:00]}  e5 {[%clk 0:01:45]} 21. Be3 {[%clk 0:01:53]}  Bg7 {[%clk 0:01:36]} 22. Bh3 {[%clk 0:01:06]}  exd4 {[%clk 0:01:13]} 23. Bxd4 {[%clk 0:01:07]}  Bxd4 {[%clk 0:01:06]} 24. Rxd4 {[%clk 0:01:08]}  Ne5 {[%clk 0:00:59]} 25. Nxe5 {[%clk 0:01:05]}  Rxe5 {[%clk 0:00:59]} 26. Qf6 {[%clk 0:01:05]}  Re7 {[%clk 0:00:51]} 27. Rxc6 {[%clk 0:01:03]}  Rae8 {[%clk 0:00:47]} 28. Bg2 {[%clk 0:00:58]}  Be6 {[%clk 0:00:43]} 29. e5 {[%clk 0:00:54]}  Rc7 {[%clk 0:00:38]} 30. Rd8 {[%clk 0:00:45]}  Re7 {[%clk 0:00:25]} 31. Rxe8+ {[%clk 0:00:41]}  Rxe8 {[%clk 0:00:25]} 32. Rxe6 {[%clk 0:00:42]} 1-0


[Site "https://www.chess.com"]

[Event "Titled Tuesday Blitz November 29 Early 2022"]
[White "Ambartsumova, Karina"]
[Black "Gurevich, Dmitry"]
[WhiteFideId "4166299"]
[BlackFideId "2000407"]
[WhiteElo "2319"]
[BlackElo "2506"]
[Result "1-0"]
[Round "11"]
[TimeControl "180+1"]
[Date "2022.11.30"]
[WhiteClock "0:00:19"]
[BlackClock "0:00:10"]

1. Nf3 {[%clk 0:03:00]}  Nf6 {[%clk 0:02:58]} 2. g3 {[%clk 0:03:00]}  d5 {[%clk 0:02:58]} 3. d4 {[%clk 0:02:59]}  Bf5 {[%clk 0:02:56]} 4. Bg2 {[%clk 0:02:59]}  e6 {[%clk 0:02:57]} 5. c4 {[%clk 0:02:58]}  c6 {[%clk 0:02:54]} 6. Qb3 {[%clk 0:02:52]}  Qb6 {[%clk 0:02:51]} 7. c5 {[%clk 0:02:52]}  Qxb3 {[%clk 0:02:50]} 8. axb3 {[%clk 0:02:53]}  Nbd7 {[%clk 0:02:48]} 9. Bf4 {[%clk 0:02:51]}  h6 {[%clk 0:02:45]} 10. h4 {[%clk 0:02:50]}  a6 {[%clk 0:02:43]} 11. b4 {[%clk 0:02:48]}  Rc8 {[%clk 0:02:40]} 12. Nbd2 {[%clk 0:02:48]}  Be7 {[%clk 0:02:40]} 13. Nb3 {[%clk 0:02:48]}  Bd8 {[%clk 0:02:37]} 14. Na5 {[%clk 0:02:45]}  Bxa5 {[%clk 0:02:36]} 15. bxa5 {[%clk 0:02:46]}  Ne4 {[%clk 0:02:29]} 16. Ra4 {[%clk 0:02:36]}  Ra8 {[%clk 0:02:20]} 17. Rb4 {[%clk 0:02:33]}  Ra7 {[%clk 0:02:20]} 18. Nd2 {[%clk 0:02:00]}  Nxd2 {[%clk 0:02:16]} 19. Kxd2 {[%clk 0:02:01]}  f6 {[%clk 0:02:16]} 20. Bd6 {[%clk 0:02:00]}  Kd8 {[%clk 0:02:11]} 21. f3 {[%clk 0:01:59]}  e5 {[%clk 0:02:03]} 22. e4 {[%clk 0:01:48]}  Be6 {[%clk 0:01:54]} 23. Rf1 {[%clk 0:01:42]}  Re8 {[%clk 0:01:43]} 24. Rf2 {[%clk 0:01:19]}  exd4 {[%clk 0:01:37]} 25. Rxd4 {[%clk 0:01:18]}  dxe4 {[%clk 0:01:34]} 26. Rxe4 {[%clk 0:01:14]}  Ne5 {[%clk 0:01:17]} 27. Bxe5 {[%clk 0:01:03]}  fxe5 {[%clk 0:01:16]} 28. Rxe5 {[%clk 0:01:04]}  Bd5 {[%clk 0:01:13]} 29. Rfe2 {[%clk 0:01:00]}  Rxe5 {[%clk 0:01:11]} 30. Rxe5 {[%clk 0:01:00]}  Ra8 {[%clk 0:01:08]} 31. Ke3 {[%clk 0:01:00]}  Rc8 {[%clk 0:01:04]} 32. Bh3 {[%clk 0:00:54]}  Rc7 {[%clk 0:01:04]} 33. f4 {[%clk 0:00:54]}  Rf7 {[%clk 0:00:54]} 34. h5 {[%clk 0:00:54]}  Rf6 {[%clk 0:00:44]} 35. Bf5 {[%clk 0:00:45]}  Bf7 {[%clk 0:00:31]} 36. g4 {[%clk 0:00:44]}  Be8 {[%clk 0:00:27]} 37. g5 {[%clk 0:00:33]}  Rf8 {[%clk 0:00:20]} 38. Bg4 {[%clk 0:00:31]}  Bd7 {[%clk 0:00:19]} 39. Bxd7 {[%clk 0:00:25]}  Kxd7 {[%clk 0:00:19]} 40. Ke4 {[%clk 0:00:25]}  hxg5 {[%clk 0:00:18]} 41. fxg5 {[%clk 0:00:19]}  Rf2 {[%clk 0:00:16]} 42. Rf5 {[%clk 0:00:18]}  Re2+ {[%clk 0:00:10]} 43. Kf3 {[%clk 0:00:19]} 1-0


[Site "https://www.chess.com"]

[Event "Titled Tuesday Blitz November 29 Early 2022"]
[White "Arabidze, Meri"]
[Black "Pinheiro, Iung Alicio de O."]
[WhiteFideId "13604040"]
[BlackFideId "2104350"]
[WhiteElo "2403"]
[BlackElo "2283"]
[Result "1-0"]
[Round "11"]
[TimeControl "180+1"]
[Date "2022.11.30"]
[WhiteClock "0:00:25"]
[BlackClock "0:00:03"]

1. Nf3 {[%clk 0:03:00]}  c5 {[%clk 0:02:58]} 2. e3 {[%clk 0:03:01]}  e6 {[%clk 0:02:52]} 3. b3 {[%clk 0:03:01]}  b6 {[%clk 0:02:51]} 4. Bb2 {[%clk 0:03:01]}  Bb7 {[%clk 0:02:51]} 5. d4 {[%clk 0:03:00]}  Nf6 {[%clk 0:02:51]} 6. Bd3 {[%clk 0:03:00]}  cxd4 {[%clk 0:02:50]} 7. exd4 {[%clk 0:03:00]}  Bb4+ {[%clk 0:02:50]} 8. c3 {[%clk 0:02:57]}  Be7 {[%clk 0:02:48]} 9. O-O {[%clk 0:02:57]}  O-O {[%clk 0:02:48]} 10. Nbd2 {[%clk 0:02:58]}  d6 {[%clk 0:02:48]} 11. c4 {[%clk 0:02:57]}  Nbd7 {[%clk 0:02:46]} 12. Qe2 {[%clk 0:02:57]}  Re8 {[%clk 0:02:46]} 13. Rfe1 {[%clk 0:02:56]}  Bf8 {[%clk 0:02:46]} 14. Rad1 {[%clk 0:02:55]}  a6 {[%clk 0:02:45]} 15. Bb1 {[%clk 0:02:54]}  Qc7 {[%clk 0:02:43]} 16. Qd3 {[%clk 0:02:53]}  Rad8 {[%clk 0:02:33]} 17. Ng5 {[%clk 0:02:51]}  g6 {[%clk 0:02:24]} 18. Qh3 {[%clk 0:02:46]}  Bg7 {[%clk 0:02:18]} 19. Qg3 {[%clk 0:02:19]}  e5 {[%clk 0:02:13]} 20. d5 {[%clk 0:02:14]}  Nh5 {[%clk 0:02:10]} 21. Qh3 {[%clk 0:02:10]}  Nf8 {[%clk 0:02:00]} 22. Qd3 {[%clk 0:01:44]}  Bc8 {[%clk 0:01:51]} 23. f3 {[%clk 0:01:40]}  Bh6 {[%clk 0:01:46]} 24. Nge4 {[%clk 0:01:38]}  f5 {[%clk 0:01:42]} 25. Ng3 {[%clk 0:01:38]}  Nf4 {[%clk 0:01:41]} 26. Qc3 {[%clk 0:01:36]}  Bg7 {[%clk 0:01:37]} 27. b4 {[%clk 0:01:36]}  Re7 {[%clk 0:01:28]} 28. Qb3 {[%clk 0:01:36]}  h5 {[%clk 0:01:20]} 29. Ne2 {[%clk 0:01:31]}  Nxe2+ {[%clk 0:01:14]} 30. Rxe2 {[%clk 0:01:32]}  h4 {[%clk 0:01:14]} 31. h3 {[%clk 0:01:32]}  Bh6 {[%clk 0:01:11]} 32. Nf1 {[%clk 0:01:23]}  Kh7 {[%clk 0:01:09]} 33. Bc1 {[%clk 0:01:22]}  Bxc1 {[%clk 0:01:05]} 34. Rxc1 {[%clk 0:01:23]}  a5 {[%clk 0:01:02]} 35. a3 {[%clk 0:01:22]}  Nd7 {[%clk 0:00:59]} 36. Ne3 {[%clk 0:01:19]}  Nf6 {[%clk 0:00:59]} 37. Rec2 {[%clk 0:01:12]}  f4 {[%clk 0:00:54]} 38. Ng4 {[%clk 0:01:10]}  Rf8 {[%clk 0:00:33]} 39. c5 {[%clk 0:01:08]}  Bd7 {[%clk 0:00:17]} 40. cxd6 {[%clk 0:00:59]}  Qxd6 {[%clk 0:00:18]} 41. Rc6 {[%clk 0:00:54]}  Bxc6 {[%clk 0:00:13]} 42. Rxc6 {[%clk 0:00:55]}  Qd8 {[%clk 0:00:12]} 43. Nxf6+ {[%clk 0:00:54]}  Kg7 {[%clk 0:00:12]} 44. Ng4 {[%clk 0:00:51]}  Rf5 {[%clk 0:00:09]} 45. Bxf5 {[%clk 0:00:50]}  gxf5 {[%clk 0:00:10]} 46. Nf2 {[%clk 0:00:37]}  Rd7 {[%clk 0:00:09]} 47. bxa5 {[%clk 0:00:37]}  bxa5 {[%clk 0:00:08]} 48. Rc5 {[%clk 0:00:31]}  Rd6 {[%clk 0:00:06]} 49. Nd3 {[%clk 0:00:30]}  e4 {[%clk 0:00:05]} 50. Nxf4 {[%clk 0:00:30]}  Qg5 {[%clk 0:00:03]} 51. Qb7+ {[%clk 0:00:25]} 1-0


[Site "https://www.chess.com"]

[Event "Titled Tuesday Blitz November 29 Early 2022"]
[White "Bai, Adelard"]
[Black "Oro, Faustino"]
[WhiteFideId "16301188"]
[BlackFideId "20000197"]
[WhiteElo "2299"]
[BlackElo "2066"]
[Result "1-0"]
[Round "11"]
[TimeControl "180+1"]
[Date "2022.11.30"]
[WhiteClock "0:02:03"]
[BlackClock "0:01:14"]

1. d4 {[%clk 0:02:56]}  Nf6 {[%clk 0:03:00]} 2. c4 {[%clk 0:02:56]}  e6 {[%clk 0:03:00]} 3. Nf3 {[%clk 0:02:57]}  b6 {[%clk 0:02:59]} 4. g3 {[%clk 0:02:57]}  Bb7 {[%clk 0:02:59]} 5. Bg2 {[%clk 0:02:57]}  Be7 {[%clk 0:03:00]} 6. O-O {[%clk 0:02:58]}  O-O {[%clk 0:03:00]} 7. Re1 {[%clk 0:02:57]}  d5 {[%clk 0:02:58]} 8. cxd5 {[%clk 0:02:56]}  exd5 {[%clk 0:02:58]} 9. Nc3 {[%clk 0:02:55]}  Nbd7 {[%clk 0:02:57]} 10. Bf4 {[%clk 0:02:55]}  c6 {[%clk 0:02:55]} 11. Ne5 {[%clk 0:02:47]}  Re8 {[%clk 0:02:52]} 12. Rc1 {[%clk 0:02:46]}  Nf8 {[%clk 0:02:51]} 13. e4 {[%clk 0:02:35]}  dxe4 {[%clk 0:02:46]} 14. Nxe4 {[%clk 0:02:35]}  Nd5 {[%clk 0:02:46]} 15. Qf3 {[%clk 0:02:25]}  Bf6 {[%clk 0:01:47]} 16. Bg5 {[%clk 0:02:12]}  Re6 {[%clk 0:01:28]} 17. Bh3 {[%clk 0:02:07]}  Be7 {[%clk 0:01:16]} 18. Qxf7+ {[%clk 0:02:04]}  Kh8 {[%clk 0:01:16]} 19. Bxe6 {[%clk 0:02:02]}  Nxe6 {[%clk 0:01:14]} 20. Qxe6 {[%clk 0:02:03]}  Bxg5 {[%clk 0:01:14]} 21. Nf7+ {[%clk 0:02:03]} 1-0


[Site "https://www.chess.com"]

[Event "Titled Tuesday Blitz November 29 Early 2022"]
[White "Balabayeva, Xeniya"]
[Black "Tsatsalashvili, Keti"]
[WhiteFideId "13719688"]
[BlackFideId "13603434"]
[WhiteElo "2041"]
[BlackElo "2220"]
[Result "1-0"]
[Round "11"]
[TimeControl "180+1"]
[Date "2022.11.30"]
[WhiteClock "0:00:09"]
[BlackClock "0:00:07"]

1. e4 {[%clk 0:03:00]}  c5 {[%clk 0:02:59]} 2. Nf3 {[%clk 0:02:59]}  d6 {[%clk 0:02:59]} 3. Bb5+ {[%clk 0:02:58]}  Bd7 {[%clk 0:02:55]} 4. Bxd7+ {[%clk 0:02:58]}  Nxd7 {[%clk 0:02:55]} 5. O-O {[%clk 0:02:58]}  Ngf6 {[%clk 0:02:54]} 6. Re1 {[%clk 0:02:58]}  e6 {[%clk 0:02:55]} 7. c3 {[%clk 0:02:58]}  Be7 {[%clk 0:02:51]} 8. d4 {[%clk 0:02:58]}  d5 {[%clk 0:02:49]} 9. e5 {[%clk 0:02:57]}  Ne4 {[%clk 0:02:49]} 10. Nbd2 {[%clk 0:02:53]}  Nxd2 {[%clk 0:02:48]} 11. Bxd2 {[%clk 0:02:49]}  O-O {[%clk 0:02:48]} 12. Bf4 {[%clk 0:02:40]}  Rc8 {[%clk 0:02:45]} 13. Qd2 {[%clk 0:02:39]}  Qa5 {[%clk 0:02:39]} 14. dxc5 {[%clk 0:02:19]}  Qxc5 {[%clk 0:02:34]} 15. Rad1 {[%clk 0:02:08]}  Qa5 {[%clk 0:02:30]} 16. Nd4 {[%clk 0:01:43]}  a6 {[%clk 0:02:20]} 17. Re3 {[%clk 0:01:38]}  Qxa2 {[%clk 0:02:03]} 18. Rg3 {[%clk 0:01:37]}  g6 {[%clk 0:01:57]} 19. Bh6 {[%clk 0:01:25]}  Rfe8 {[%clk 0:01:56]} 20. Qf4 {[%clk 0:01:19]}  Qa4 {[%clk 0:01:38]} 21. Re1 {[%clk 0:01:12]}  Bf8 {[%clk 0:00:59]} 22. Rh3 {[%clk 0:00:47]}  Qc4 {[%clk 0:00:40]} 23. Bg5 {[%clk 0:00:19]}  Qc7 {[%clk 0:00:36]} 24. Qh4 {[%clk 0:00:16]}  h5 {[%clk 0:00:33]} 25. Nf3 {[%clk 0:00:15]}  Bg7 {[%clk 0:00:29]} 26. g4 {[%clk 0:00:14]}  Qc4 {[%clk 0:00:27]} 27. Nd4 {[%clk 0:00:12]}  Nxe5 {[%clk 0:00:25]} 28. gxh5 {[%clk 0:00:12]}  gxh5 {[%clk 0:00:21]} 29. Qxh5 {[%clk 0:00:12]}  Ng6 {[%clk 0:00:22]} 30. Bh6 {[%clk 0:00:11]}  Qc7 {[%clk 0:00:13]} 31. Bxg7 {[%clk 0:00:11]}  Kxg7 {[%clk 0:00:14]} 32. Qh6+ {[%clk 0:00:11]}  Kg8 {[%clk 0:00:14]} 33. Rg3 {[%clk 0:00:12]}  Qd7 {[%clk 0:00:09]} 34. Ree3 {[%clk 0:00:10]}  Qd6 {[%clk 0:00:09]} 35. Nf5 {[%clk 0:00:08]}  Qf8 {[%clk 0:00:07]} 36. Rxg6+ {[%clk 0:00:08]}  fxg6 {[%clk 0:00:07]} 37. Qxg6+ {[%clk 0:00:09]} 1-0


[Site "https://www.chess.com"]

[Event "Titled Tuesday Blitz November 29 Early 2022"]
[White "Baskakov, Egor"]
[Black "Sadubayev, Airat"]
[WhiteFideId "24197866"]
[BlackFideId "13713264"]
[WhiteElo "2211"]
[BlackElo "2160"]
[Result "0-1"]
[Round "11"]
[TimeControl "180+1"]
[Date "2022.11.29"]
[WhiteClock "0:00:03"]
[BlackClock "0:00:06"]

1. e4 {[%clk 0:03:00]}  c6 {[%clk 0:02:58]} 2. d4 {[%clk 0:03:00]}  d5 {[%clk 0:02:58]} 3. e5 {[%clk 0:03:01]}  Bf5 {[%clk 0:02:57]} 4. Ne2 {[%clk 0:03:01]}  e6 {[%clk 0:02:54]} 5. Ng3 {[%clk 0:02:59]}  Bg6 {[%clk 0:02:53]} 6. h4 {[%clk 0:02:59]}  h5 {[%clk 0:02:40]} 7. Bd3 {[%clk 0:02:58]}  Bxd3 {[%clk 0:02:38]} 8. cxd3 {[%clk 0:02:59]}  Qb6 {[%clk 0:02:34]} 9. Ne2 {[%clk 0:02:56]}  Ne7 {[%clk 0:02:29]} 10. Nd2 {[%clk 0:02:56]}  Nf5 {[%clk 0:02:27]} 11. Nf3 {[%clk 0:02:56]}  c5 {[%clk 0:02:18]} 12. dxc5 {[%clk 0:02:56]}  Bxc5 {[%clk 0:02:18]} 13. d4 {[%clk 0:02:56]}  Bb4+ {[%clk 0:02:17]} 14. Kf1 {[%clk 0:02:49]}  Nc6 {[%clk 0:02:15]} 15. a3 {[%clk 0:02:44]}  Be7 {[%clk 0:02:14]} 16. Qd3 {[%clk 0:02:20]}  Rc8 {[%clk 0:02:02]} 17. b4 {[%clk 0:02:16]}  a6 {[%clk 0:01:50]} 18. Kg1 {[%clk 0:02:13]}  Qb5 {[%clk 0:01:38]} 19. Qd1 {[%clk 0:02:11]}  a5 {[%clk 0:01:33]} 20. bxa5 {[%clk 0:02:09]}  Qxa5 {[%clk 0:01:29]} 21. Ng3 {[%clk 0:02:04]}  Nxg3 {[%clk 0:01:23]} 22. fxg3 {[%clk 0:02:04]}  O-O {[%clk 0:01:11]} 23. Bg5 {[%clk 0:01:54]}  Qc3 {[%clk 0:01:09]} 24. Rc1 {[%clk 0:01:46]}  Qxa3 {[%clk 0:01:07]} 25. Kh2 {[%clk 0:01:43]}  Rc7 {[%clk 0:00:58]} 26. Bxe7 {[%clk 0:01:27]}  Rxe7 {[%clk 0:00:53]} 27. Ng5 {[%clk 0:01:27]}  g6 {[%clk 0:00:50]} 28. Rf1 {[%clk 0:01:27]}  Qe3 {[%clk 0:00:48]} 29. Rf4 {[%clk 0:01:27]}  Ra8 {[%clk 0:00:35]} 30. Rb1 {[%clk 0:01:21]}  Qa3 {[%clk 0:00:24]} 31. Rb3 {[%clk 0:00:48]}  Qa2 {[%clk 0:00:21]} 32. Rbf3 {[%clk 0:00:40]}  Qa1 {[%clk 0:00:21]} 33. Qd3 {[%clk 0:00:30]}  Qa6 {[%clk 0:00:17]} 34. Qc2 {[%clk 0:00:25]}  Qa2 {[%clk 0:00:16]} 35. Qc5 {[%clk 0:00:26]}  Qa5 {[%clk 0:00:14]} 36. Qc2 {[%clk 0:00:15]}  Qa2 {[%clk 0:00:14]} 37. Qd1 {[%clk 0:00:14]}  Qa1 {[%clk 0:00:14]} 38. Qe2 {[%clk 0:00:14]}  Nxd4 {[%clk 0:00:13]} 39. Rxd4 {[%clk 0:00:10]}  Qxd4 {[%clk 0:00:14]} 40. Qc2 {[%clk 0:00:10]}  Rf8 {[%clk 0:00:11]} 41. Qe2 {[%clk 0:00:06]}  Qc4 {[%clk 0:00:10]} 42. Qe3 {[%clk 0:00:06]}  Qg4 {[%clk 0:00:09]} 43. Rf4 {[%clk 0:00:06]}  Qd1 {[%clk 0:00:09]} 44. Rd4 {[%clk 0:00:05]}  Qc2 {[%clk 0:00:09]} 45. Qf3 {[%clk 0:00:04]}  Qf5 {[%clk 0:00:09]} 46. Rf4 {[%clk 0:00:04]}  Qxe5 {[%clk 0:00:09]} 47. Rf6 {[%clk 0:00:02]}  Kg7 {[%clk 0:00:08]} 48. Rf4 {[%clk 0:00:02]}  Kg8 {[%clk 0:00:08]} 49. Rf6 {[%clk 0:00:02]}  d4 {[%clk 0:00:08]} 50. Rf4 {[%clk 0:00:02]}  b5 {[%clk 0:00:07]} 51. Ne4 {[%clk 0:00:02]}  f5 {[%clk 0:00:05]} 52. Ng5 {[%clk 0:00:02]}  Rd8 {[%clk 0:00:05]} 53. Qf1 {[%clk 0:00:03]}  d3 {[%clk 0:00:05]} 54. Rf2 {[%clk 0:00:03]}  d2 {[%clk 0:00:05]} 55. Qd1 {[%clk 0:00:03]}  Qe1 {[%clk 0:00:06]} 56. Qb3 {[%clk 0:00:03]}  d1=Q {[%clk 0:00:06]} 0-1


[Site "https://www.chess.com"]